bitfinex/quotes_ETHUSD_20240811
["timestamp","ask_amount","ask_price","bid_price","bid_amount"]
[1723349730225,2.64556,2646.0,2645.4,2.64603]
[1723349730568,5.09716,2646.2,2645.5,2.64598]
[1723349730569,5.09711,2646.2,2645.5,2.64598]
[1723349730934,5.09711,2646.2,2645.6,2.64581]
[1723349731451,2.64512,2646.4,2645.7,2.64577]
[1723349731663,3.0,2646.3,2645.8,2.64569]
[1723349731889,5.55,2646.5,2645.9,2.64559]
[1723349732053,2.64491,2646.6,2645.8,2.64562]
[1723349732372,2.64491,2646.6,2645.8,5.29125]
[1723349732373,2.64501,2646.5,2645.8,5.29125]
[1723349732672,2.64501,2646.5,2645.9,2.64558]
[1723349732841,2.64521,2646.3,2645.6,4.96637]
[1723349733043,3.4701474,2646.5,2645.8,2.64568]
[1723349733241,2.64511,2646.4,2645.8,2.64568]
[1723349733549,2.6452,2646.3,2645.8,2.64568]
[1723349734243,2.6452,2646.3,2645.6,4.96633]
[1723349734835,0.509654,2646.6,2645.6,2.3205]
[1723349735042,2.64517,2646.4,2645.8,2.64561]
[1723349736980,2.645,2646.5,2645.9,2.64559]
[1723349737182,2.645,2646.5,2645.9,2.72117045]
[1723349737482,0.8799634,2646.5,2645.6,2.3205]
[1723349737698,2.64536,2646.2,2645.6,4.96637]
[1723349737973,2.64536,2646.2,2645.4,2.64602]
[1723349738180,2.64536,2646.2,2645.6,2.64589]
[1723349738558,2.64536,2646.2,2645.6,2.64584]
[1723349738882,2.64536,2646.2,2645.6,3.175031]
[1723349739855,2.64522,2646.3,2645.7,2.64579]
[1723349740079,2.64522,2646.3,2645.6,3.175031]
[1723349740281,2.64532,2646.2,2645.6,3.175031]
[1723349741674,5.2907,2646.2,2645.6,3.175031]
[1723349741980,2.4761,2646.4,2645.3,9.7456]
[1723349741981,2.64556,2646.0,2645.3,9.7456]
[1723349742282,2.64556,2646.0,2644.9,15.43]
[1723349742283,2.64598,2645.6,2644.9,2.3222]
[1723349742446,5.55,2646.0,2645.0,2.3222]
[1723349742648,5.55,2646.0,2645.5,4.96814]
[1723349742844,2.64537,2646.2,2645.5,4.96814]
[1723349743111,2.64552,2646.0,2645.5,4.96814]
[1723349743953,2.64552,2646.0,2645.5,2.3222]
[1723349744850,0.529087,2646.0,2645.2,2.3222]
[1723349745191,2.64577,2645.8,2645.2,2.3222]
[1723349745663,5.29154,2645.8,2645.2,2.3222]
[1723349745845,5.29154,2645.8,2644.9,5.465638]
[1723349745846,2.64597,2645.6,2644.9,5.465638]
[1723349746048,2.64597,2645.6,2645.0,0.5465638]
[1723349746794,2.64597,2645.6,2645.0,3.1930538]
[1723349748806,5.55,2646.0,2645.3,2.64613]
[1723349748807,2.6456,2645.9,2645.3,2.64613]
[1723349749007,2.64572,2645.8,2645.3,0.264613]
[1723349749193,2.64572,2645.8,2645.1,2.64632]
[1723349749194,2.64572,2645.8,2645.1,5.29263]
[1723349749398,2.64572,2645.8,2645.1,2.64631]
[1723349749709,2.64572,2645.8,2645.2,2.3222]
[1723349750011,2.64581,2645.7,2645.2,2.3222]
[1723349750314,2.64572,2645.8,2645.2,4.96843]
[1723349750496,2.64572,2645.8,2645.2,5.78456038]
[1723349751590,2.64593,2645.6,2644.8,2.3222]
[1723349752075,5.29191,2645.6,2644.9,2.64653]
[1723349752270,2.64593,2645.6,2644.9,2.64653]
[1723349752778,2.64606,2645.5,2644.9,2.64653]
[1723349753933,2.64606,2645.5,2644.9,3.408078]
[1723349754215,2.64611,2645.4,2644.9,3.408078]
[1723349754605,2.64593,2645.6,2644.9,3.408078]
[1723349754922,2.64593,2645.6,2645.0,2.64643]
[1723349755082,3.707618,2645.6,2645.0,2.64643]
[1723349755422,6.353608,2645.6,2644.9,3.408078]
[1723349755581,2.64605,2645.5,2644.9,3.408078]
[1723349755784,2.3144,2644.9,2644.2,2.3148]
[1723349756115,4.96103,2644.9,2643.9,2.3148]
[1723349756283,4.96103,2644.9,2644.1,2.64738]
[1723349756476,4.96103,2644.9,2644.1,3.408356]
[1723349756699,2.64671,2644.8,2644.1,3.408356]
[1723349756899,2.64671,2644.8,2644.1,0.760976]
[1723349757218,2.64671,2644.8,2644.1,3.408316]
[1723349757579,2.64671,2644.8,2644.2,2.6473]
[1723349758188,4.961,2644.9,2644.2,2.6473]
[1723349758393,4.961,2644.9,2644.2,2.9881276]
[1723349758602,8.19648,2645.1,2644.4,2.3148]
[1723349758808,8.19648,2645.1,2644.1,2.3148]
[1723349758809,5.55,2645.1,2644.1,2.3148]
[1723349759125,0.78644,2645.0,2644.3,2.64719]
[1723349759827,5.55,2645.1,2644.3,2.64719]
[1723349760002,2.64662,2644.9,2644.3,2.64719]
[1723349760928,2.64673,2644.8,2644.1,4.9622]
[1723349761501,2.64662,2644.9,2644.2,2.64728]
[1723349761798,2.64662,2644.9,2644.1,4.9622]
[1723349761799,2.64662,2644.9,2644.3,0.760948]
[1723349762025,2.6467,2644.8,2644.3,0.760948]
[1723349762233,2.64692,2644.6,2644.1,2.3148]
[1723349763390,2.273,2644.5,2643.9,2.64756]
[1723349763595,2.273,2644.5,2643.7,3.6138478]
[1723349763596,2.273,2644.5,2643.7,0.6138478]
[1723349763901,2.64724,2644.3,2643.4,5.03836]
[1723349764102,2.64724,2644.3,2643.6,2.6479]
[1723349764329,2.64724,2644.3,2643.7,0.26479]
[1723349764529,2.64703,2644.5,2643.9,2.3903]
[1723349764732,2.64703,2644.5,2643.9,5.11346554]
[1723349765291,2.64703,2644.5,2643.7,0.26479]
[1723349765867,2.64728,2644.3,2643.7,3.26479]
[1723349766161,2.64728,2644.3,2643.8,0.830295]
[1723349767358,5.29457,2644.3,2643.8,0.830295]
[1723349767758,2.71615588,2646.1,2643.8,0.830295]
[1723349767759,2.273,2645.2,2644.0,2.3903]
[1723349768057,4.91937,2645.2,2644.5,5.0373]
[1723349768258,4.91937,2645.2,2644.5,5.09005518]
[1723349768467,4.91937,2645.2,2644.5,5.11216893]
[1723349768662,2.64641,2645.1,2644.6,0.77592089]
[1723349769021,2.273,2645.2,2644.6,0.77592089]
[1723349769227,2.273,2645.2,2644.5,5.11289869]
[1723349769429,5.273,2645.2,2644.6,2.64683]
[1723349770264,5.273,2645.2,2644.7,2.64675]
[1723349770834,4.91901,2645.5,2644.9,2.64652]
[1723349771039,2.273,2645.8,2645.1,2.64632]
[1723349771247,2.273,2645.8,2645.2,0.07560038]
[1723349771451,2.273,2645.8,2645.3,2.64618]
[1723349771680,4.9187,2645.8,2645.1,2.64632]
[1723349771836,2.64581,2645.7,2645.1,3.414637]
[1723349772831,2.699,2645.7,2644.2,2.3903]
[1723349773029,2.64682,2644.7,2643.9,5.03788]
[1723349773228,2.64708,2644.5,2643.8,2.64769]
[1723349773472,2.64708,2644.5,2643.7,2.64773]
[1723349773473,2.6472,2644.3,2643.7,2.64773]
[1723349773645,2.273,2644.2,2643.5,5.99467301]
[1723349773829,2.273,2644.2,2643.6,3.2473473]
[1723349774231,2.273,2644.2,2643.6,0.5994673]
[1723349774441,4.92003,2644.5,2643.9,2.64758]
[1723349774667,2.273,2644.8,2644.2,2.64723]
[1723349774862,2.273,2644.8,2644.1,2.64737]
[1723349775062,4.9197,2644.8,2644.2,2.64729]
[1723349775263,2.273,2644.8,2644.3,2.64719]
[1723349775472,2.64643,2645.1,2644.3,2.64719]
[1723349775629,2.6465,2645.0,2644.3,2.64719]
[1723349775834,2.64661,2644.9,2644.3,2.64719]
[1723349776661,3.136523,2645.1,2644.4,2.64708]
[1723349776863,2.64624,2645.3,2644.7,2.64679]
[1723349777370,2.6463,2645.2,2644.5,2.64696]
[1723349777675,2.64641,2645.1,2644.6,0.264696]
[1723349778346,4.90118,2644.9,2644.0,2.4329]
[1723349778547,2.64689,2644.7,2644.1,2.64738]
[1723349779373,2.64709,2644.5,2643.7,5.08063]
[1723349779572,2.64709,2644.5,2643.7,2.64773]
[1723349779573,2.2545,2644.4,2643.7,2.64773]
[1723349779754,2.6472,2644.3,2643.7,2.64773]
[1723349779954,2.6472,2644.3,2643.5,2.64794]
[1723349780147,2.64731,2644.2,2643.5,2.64794]
[1723349780349,2.64731,2644.2,2643.5,3.420841]
[1723349780542,2.6472,2644.3,2643.5,3.420831]
[1723349781279,2.64772,2643.8,2643.1,4.91923]
[1723349781489,2.64787,2643.7,2643.1,4.91923]
[1723349781683,8.19753,2644.0,2643.1,4.91923]
[1723349781887,5.55,2644.0,2643.3,2.64816]
[1723349782487,2.64763,2643.9,2643.3,2.64816]
[1723349782794,5.55,2644.0,2643.4,2.6481]
[1723349783549,5.55,2644.0,2643.5,2.648]
[1723349783747,5.55,2644.0,2643.7,2.64771]
[1723349783947,2.64709,2644.5,2643.9,2.64753]
[1723349784147,2.6471,2644.4,2643.7,4.91861]
[1723349784384,2.6471,2644.4,2643.8,2.64769]
[1723349784597,2.6471,2644.4,2643.7,4.91861]
[1723349784798,2.64724,2644.3,2643.7,2.64771]
[1723349785094,2.6473,2644.2,2643.5,2.64793]
[1723349785297,2.6473,2644.2,2643.4,4.91891]
[1723349785593,2.64752,2644.0,2643.4,2.64801]
[1723349785887,2.64769,2643.9,2643.2,3.140153]
[1723349786247,2.64773,2643.8,2643.2,3.140153]
[1723349787456,2.64773,2643.8,2643.0,2.64848]
[1723349787647,2.6478,2643.7,2643.0,2.64844]
[1723349788045,2.64793,2643.6,2643.0,2.64844]
[1723349788276,4.96063,2643.6,2643.0,2.64844]
[1723349789278,2.64831,2643.2,2642.7,0.01174873]
[1723349789518,2.64812,2643.4,2642.7,0.01174873]
[1723349789519,2.64812,2643.4,2642.7,2.64879]
[1723349790022,2.6482,2643.3,2642.7,2.64878]
[1723349790205,2.64812,2643.4,2642.6,2.64882]
[1723349790206,2.64833,2643.2,2642.6,2.64882]
[1723349791215,2.64814,2643.4,2642.7,2.64879]
[1723349791420,5.67051188,2643.6,2642.9,2.64859]
[1723349791946,2.64808,2643.5,2642.9,2.64859]
[1723349792118,2.6483,2643.2,2642.5,2.64894]
[1723349792315,2.64847,2643.1,2642.3,2.2709]
[1723349792515,2.64847,2643.1,2642.5,2.64894]
[1723349792516,4.96117,2643.1,2642.5,2.64894]
[1723349793314,4.96117,2643.1,2642.6,2.6489]
[1723349793516,4.96111,2643.1,2642.4,2.64903]
[1723349793715,4.96111,2643.1,2642.5,2.649]
[1723349793915,2.3127,2643.1,2642.6,2.64888]
[1723349794532,4.9611,2643.1,2642.6,2.64888]
[1723349795137,4.9611,2643.1,2642.4,5.57588442]
[1723349795333,4.9611,2643.1,2642.5,2.64891]
[1723349796964,4.9611,2643.1,2642.4,2.92685442]
[1723349797125,2.64852,2643.0,2642.4,2.92685442]
[1723349797324,4.9611,2643.1,2642.4,5.57587442]
[1723349798168,4.9611,2643.1,2642.4,2.92684442]
[1723349798364,2.64861,2642.9,2642.4,2.92684442]
[1723349798533,2.64856,2643.0,2642.4,2.92684442]
[1723349799786,2.80881,2643.1,2642.4,0.27782442]
[1723349799952,2.64857,2643.0,2642.2,2.7784542]
[1723349800281,2.64857,2643.0,2642.3,3.19913]
[1723349800431,2.64857,2643.0,2642.4,2.64907]
[1723349800630,2.64834,2643.2,2642.2,2.7784542]
[1723349800631,2.64877,2642.8,2642.2,0.1292142]
[1723349800856,2.4231,2642.6,2642.2,2.7784542]
[1723349803067,2.4231,2642.6,2642.2,0.1292142]
[1723349803389,2.4231,2642.6,2642.2,2.7784942]
[1723349804707,2.4231,2642.6,2642.2,0.1292142]
[1723349807600,5.07206,2642.6,2642.2,0.1292142]
[1723349807793,5.579266,2642.6,2642.2,0.1292142]
[1723349808371,2.930306,2642.6,2642.2,0.1292142]
[1723349808572,2.4231,2642.6,2642.2,0.1292142]
[1723349812313,5.07204,2642.6,2642.2,0.1292142]
[1723349812526,2.64916,2642.4,2642.2,0.1292142]
[1723349812674,2.4231,2642.6,2642.2,0.1292142]
[1723349813017,5.072,2642.6,2642.2,0.1292142]
[1723349813680,5.55,2643.1,2642.2,0.1292142]
[1723349813681,2.4231,2643.0,2642.3,2.64912]
[1723349813885,5.4231,2643.0,2642.2,2.74186962]
[1723349814110,2.64877,2642.8,2642.2,2.74186962]
[1723349814416,2.6489,2642.7,2642.2,0.1292142]
[1723349815111,2.64867,2642.9,2642.3,2.64913]
[1723349815403,2.64867,2642.9,2642.2,0.1292142]
[1723349815774,2.64887,2642.7,2642.2,0.1292142]
[1723349816214,2.64865,2642.9,2642.2,2.7785142]
[1723349816416,2.64865,2642.9,2642.2,2.7784442]
[1723349816621,2.64882,2642.7,2642.2,0.1292142]
[1723349816918,2.3298,2642.6,2642.2,0.1292142]
[1723349817121,2.64908,2642.5,2642.2,0.1292142]
[1723349817276,4.97871,2642.6,2642.2,0.1292142]
[1723349817600,2.3298,2642.6,2642.2,0.1292142]
[1723349817803,2.64903,2642.5,2642.2,0.1292142]
[1723349818106,2.64914,2642.4,2642.2,0.1292142]
[1723349818313,7.6282,2642.3,2642.2,0.1292142]
[1723349818515,4.979,2642.3,2642.2,0.1292142]
[1723349818677,5.4769,2642.3,2642.2,0.1292142]
[1723349819008,8.1261,2642.3,2642.2,0.1292142]
[1723349819208,5.4769,2642.3,2642.2,0.1292142]
[1723349819524,8.1261,2642.3,2642.2,0.1292142]
[1723349820407,13.7753,2642.3,2642.2,0.1292142]
[1723349821311,11.1261,2642.3,2642.2,0.1292142]
[1723349823442,10.2072,2641.9,2641.8,0.11669274]
[1723349823600,16.22611144,2641.9,2641.8,2.74e-06]
[1723349823800,2.65015,2641.4,2640.4,2.72684145]
[1723349823998,2.65038,2641.2,2640.4,5.30214]
[1723349824199,2.65038,2641.2,2640.4,2.65104]
[1723349824396,2.65038,2641.2,2640.5,0.501244]
[1723349824708,2.64993,2641.6,2640.6,2.3614]
[1723349824908,0.05220484,2641.5,2641.0,2.65049]
[1723349825445,0.05220484,2641.5,2640.0,12.65144]
[1723349825446,2.65081,2640.7,2640.0,12.65144]
[1723349825739,2.65047,2641.1,2640.2,2.65129]
[1723349825939,0.05220484,2641.2,2640.6,2.6509]
[1723349826147,0.05220484,2641.1,2640.4,2.65107]
[1723349826438,2.65032,2641.2,2640.3,2.3614]
[1723349826619,2.70261484,2641.1,2640.4,0.23614]
[1723349826829,0.05220484,2641.0,2640.5,2.65101]
[1723349827135,5.2584,2641.6,2640.8,2.3614]
[1723349827136,0.05220484,2641.5,2640.8,2.3614]
[1723349827337,2.70221484,2641.5,2640.8,5.0121]
[1723349827646,5.65018,2641.4,2640.8,2.3614]
[1723349827804,0.05220484,2641.3,2640.8,2.3614]
[1723349828139,0.05220484,2641.3,2640.8,5.01203]
[1723349828340,0.92911338,2642.2,2640.9,2.3614]
[1723349828540,0.05220484,2642.1,2641.5,5.01132]
[1723349828701,2.6498,2641.8,2641.1,5.0118]
[1723349828908,2.70208484,2641.7,2641.1,2.3614]
[1723349829858,2.64991,2641.6,2641.1,2.3614]
[1723349830056,0.05220484,2641.5,2641.1,2.3614]
[1723349830867,0.05220484,2641.7,2641.2,2.6503]
[1723349831357,2.70202484,2641.7,2641.1,2.3614]
[1723349831524,2.64992,2641.6,2641.1,2.3614]
[1723349831722,0.05220484,2641.5,2641.1,2.3614]
[1723349832025,0.05220484,2642.0,2641.4,2.65003]
[1723349832229,0.05220484,2642.0,2641.6,2.6499]
[1723349832935,0.05220484,2642.2,2641.6,2.6499]
[1723349833135,0.78250019,2642.2,2641.6,2.6499]
[1723349833484,0.78250019,2642.2,2641.1,5.01173]
[1723349833764,2.64973,2641.8,2641.1,5.01173]
[1723349834055,2.70200484,2641.7,2641.1,2.3614]
[1723349834257,0.05220484,2641.7,2641.1,5.01174]
[1723349834464,0.05220484,2641.7,2641.1,3.127623]
[1723349834824,0.05220484,2641.9,2641.4,5.01142]
[1723349835028,0.05220484,2642.1,2641.6,2.6499]
[1723349835423,0.05220484,2642.1,2641.7,2.6498]
[1723349835680,2.70163484,2642.1,2641.5,2.64998]
[1723349835834,0.05220484,2642.1,2641.6,2.6499]
[1723349836166,1.22798663,2643.3,2641.9,2.64953]
[1723349836167,2.64904,2642.5,2641.9,2.64953]
[1723349836365,8.19882,2642.7,2641.9,2.64953]
[1723349836366,0.05220484,2642.4,2642.0,2.64948]
[1723349836537,2.64882,2642.7,2642.0,2.64948]
[1723349836747,0.05220484,2642.6,2642.0,2.64948]
[1723349837068,2.97122732,2642.6,2641.9,2.64953]
[1723349837286,0.05220484,2642.6,2642.1,2.64933]
[1723349837578,2.70107484,2642.7,2642.1,2.64933]
[1723349837733,0.05220484,2642.7,2642.1,4.96342]
[1723349838272,5.06525,2643.1,2642.3,2.6491]
[1723349838449,2.64857,2643.0,2642.3,2.6491]
[1723349839065,2.64857,2643.0,2642.4,2.64908]
[1723349839385,2.64857,2643.0,2642.3,5.29823]
[1723349839551,0.506537,2642.9,2642.3,2.6491]
[1723349839752,8.19831,2643.2,2642.5,2.64899]
[1723349840085,8.19831,2643.2,2642.3,0.07568712]
[1723349840086,5.55,2643.2,2642.7,2.64872]
[1723349840304,5.55,2643.2,2642.8,2.6487]
[1723349840460,5.55,2643.2,2642.7,2.64872]
[1723349841031,11.721457,2643.2,2642.4,2.3141]
[1723349841183,2.6486,2642.9,2642.4,2.3141]
[1723349841555,2.64859,2643.0,2642.4,4.96318]
[1723349841752,0.05220484,2642.9,2642.4,4.96318]
[1723349842152,0.05220484,2643.1,2642.4,4.96313]
[1723349842372,5.55,2643.2,2642.4,2.810413]
[1723349842570,5.55,2643.2,2642.7,2.64873]
[1723349842971,5.55,2643.2,2642.8,2.64862]
[1723349843353,0.05220484,2643.3,2642.8,2.64862]
[1723349843554,0.05220484,2643.4,2642.9,2.64853]
[1723349843751,8.08645,2643.6,2642.9,2.64853]
[1723349843953,0.05220484,2643.5,2643.0,2.6485]
[1723349844254,5.64795,2643.6,2643.0,2.6485]
[1723349845368,0.05220484,2643.5,2643.1,2.64837]
[1723349845688,3.0,2643.6,2643.2,2.64829]
[1723349845892,5.55,2643.7,2643.2,2.64829]
[1723349846068,5.60220484,2643.7,2643.2,2.64829]
[1723349846250,0.05220484,2643.7,2643.3,2.64819]
[1723349846450,5.55,2644.1,2643.3,2.64819]
[1723349846451,0.05220484,2643.9,2643.4,2.648]
[1723349846796,7.73322,2644.2,2643.5,5.11068]
[1723349846969,0.56078684,2644.1,2643.5,5.18633319]
[1723349847291,0.508582,2644.1,2643.6,2.6479]
[1723349847492,3.20825684,2644.1,2643.5,2.53834936]
[1723349847699,1.03449309,2644.5,2644.0,2.6475]
[1723349847882,2.64689,2644.7,2644.0,2.64743]
[1723349848057,2.64689,2644.7,2644.1,2.64734]
[1723349848389,2.4385,2644.6,2643.5,2.4627]
[1723349848592,2.4385,2644.6,2642.9,19.78]
[1723349848593,2.64751,2644.0,2643.3,2.64813]
[1723349848899,2.64767,2643.9,2643.3,2.64813]
[1723349849091,2.6477,2643.8,2643.2,2.4627]
[1723349849392,2.6477,2643.8,2643.3,0.55]
[1723349849600,0.05220484,2643.9,2643.3,3.19818]
[1723349849792,0.05220484,2643.9,2643.4,2.64807]
[1723349849793,0.26997148,2643.9,2643.4,2.64807]
[1723349850157,0.05220484,2644.1,2643.5,2.648]
[1723349850392,2.64734,2644.2,2643.6,2.64784]
[1723349850578,0.05220484,2644.2,2643.7,2.64779]
[1723349850786,5.60220484,2644.3,2643.7,2.64779]
[1723349850998,0.05220484,2644.2,2643.7,2.64779]
[1723349851182,0.05220484,2644.2,2643.5,2.64792]
[1723349851496,6.694098,2644.3,2643.7,5.11047]
[1723349851679,0.05220484,2644.2,2643.7,5.11047]
[1723349851889,2.69950484,2644.2,2643.7,2.4627]
[1723349852403,0.05220484,2644.2,2643.7,5.11049]
[1723349852608,5.55,2644.3,2643.8,2.72330441]
[1723349852790,2.64696,2644.6,2644.0,2.64747]
[1723349852959,2.69916484,2644.6,2644.0,2.64747]
[1723349853160,1.08959048,2644.6,2644.0,2.64742]
[1723349853364,0.05220484,2644.7,2644.0,2.64742]
[1723349853602,2.69907484,2644.7,2644.0,2.64742]
[1723349853805,2.647,2644.5,2644.0,2.64742]
[1723349853972,0.05220484,2644.5,2643.8,2.64766]
[1723349854309,2.64713,2644.4,2643.8,2.64766]
[1723349854967,0.05220484,2644.3,2643.8,2.64766]
[1723349855364,2.69942484,2644.3,2643.7,3.23854]
[1723349856026,2.64722,2644.3,2643.7,3.23854]
[1723349856177,2.69927484,2644.5,2643.8,2.6477]
[1723349856377,2.69927484,2644.5,2643.9,2.64759]
[1723349856905,2.69927484,2644.5,2643.9,2.6476]
[1723349857069,2.69927484,2644.5,2643.8,2.6477]
[1723349857270,2.64712,2644.4,2643.8,2.6477]
[1723349857768,0.05220484,2644.5,2643.8,3.50104]
[1723349857996,0.05220484,2644.5,2643.9,2.64753]
[1723349858164,0.05220484,2644.5,2644.0,2.6475]
[1723349859316,5.29393,2644.6,2644.0,2.64741]
[1723349859317,0.05220484,2644.6,2644.0,2.64741]
[1723349859660,0.05220484,2644.6,2644.1,2.64738]
[1723349859878,2.69916484,2644.6,2643.9,2.64753]
[1723349860300,2.64712,2644.4,2643.8,2.64765]
[1723349860487,0.05220484,2644.3,2643.8,2.64765]
[1723349861510,2.69941484,2644.3,2643.8,2.64765]
[1723349861727,2.64746,2644.1,2643.4,4.96883]
[1723349861897,0.05220484,2644.0,2643.5,2.64793]
[1723349862088,0.83674532,2644.1,2643.5,2.64793]
[1723349862617,3.48414532,2644.1,2643.5,2.64793]
[1723349863991,2.64753,2644.0,2643.4,4.96883]
[1723349864311,0.83674532,2644.1,2643.5,0.55]
[1723349864507,0.05220484,2644.0,2643.5,0.55]
[1723349864880,2.64801,2643.5,2642.9,2.3208]
[1723349865225,2.64798,2643.6,2643.0,2.64849]
[1723349865375,0.05220484,2643.5,2643.0,2.64849]
[1723349865728,0.05220484,2643.6,2642.9,2.3208]
[1723349865875,0.05220484,2643.6,2643.2,2.64829]
[1723349866081,0.05220484,2643.6,2643.0,3.145372]
[1723349866429,0.05220484,2643.6,2643.0,5.793792]
[1723349867318,5.55,2643.8,2643.4,2.6481]
[1723349867519,5.55,2643.8,2643.6,2.64786]
[1723349867720,5.14564,2644.3,2643.7,2.6478]
[1723349868215,2.4984,2644.3,2643.8,2.64768]
[1723349868422,5.55,2644.4,2643.8,2.64768]
[1723349868423,5.55,2644.4,2643.9,2.64758]
[1723349868745,2.91695648,2644.5,2643.8,5.37094854]
[1723349868939,2.91695648,2644.5,2643.9,2.64758]
[1723349869100,0.05220484,2644.4,2643.8,3.18472485]
[1723349869301,0.05220484,2644.4,2643.8,0.53709485]
[1723349869498,2.64729,2644.3,2643.6,2.64782]
[1723349869944,2.64729,2644.3,2643.5,2.64796]
[1723349870100,2.64747,2644.1,2643.5,2.64796]
[1723349870304,0.05220484,2644.0,2643.5,2.64796]
[1723349870504,0.05220484,2644.0,2643.5,3.409654]
[1723349870729,2.69970484,2644.0,2643.5,3.409654]
[1723349871109,2.69967484,2644.1,2643.5,3.409654]
[1723349871309,2.69967484,2644.1,2643.5,3.409624]
[1723349871509,2.55060484,2644.2,2643.7,2.6478]
[1723349871802,5.19790484,2644.2,2643.7,2.6478]
[1723349872326,5.19791484,2644.2,2643.6,2.64784]
[1723349872528,5.19791484,2644.2,2643.5,3.409624]
[1723349873036,5.19791484,2644.2,2643.5,6.057554]
[1723349873244,2.64742,2644.1,2643.5,3.409624]
[1723349873410,2.69962484,2644.1,2643.5,3.409624]
[1723349873996,0.05220484,2644.1,2643.6,2.64789]
[1723349874345,0.05220484,2644.1,2643.5,3.409624]
[1723349874934,0.05220484,2644.1,2643.6,2.64783]
[1723349875143,2.55060484,2644.2,2643.6,2.64783]
[1723349875437,5.19790484,2644.2,2643.6,2.64783]
[1723349876736,5.19790484,2644.2,2643.5,6.057544]
[1723349876935,2.55060484,2644.2,2643.7,2.64778]
[1723349877904,5.19791484,2644.2,2643.5,0.761694]
[1723349878242,2.64757,2644.0,2643.3,2.64813]
[1723349878406,0.05220484,2643.9,2643.3,2.64813]
[1723349879115,2.69977484,2644.0,2643.3,2.64813]
[1723349879317,2.69977484,2644.0,2643.4,2.64803]
[1723349879625,2.69977484,2644.0,2643.3,2.64813]
[1723349879828,2.4814,2643.7,2643.2,2.6483]
[1723349880034,2.53360484,2643.7,2643.1,4.92183]
[1723349880513,2.53360484,2643.7,2643.3,2.64819]
[1723349880856,2.64747,2644.1,2643.5,2.64792]
[1723349881019,2.69972484,2644.0,2643.4,0.264819]
[1723349881207,4.97806,2643.9,2643.3,2.64815]
[1723349881545,2.38260484,2643.9,2643.3,2.64814]
[1723349881716,0.05220484,2644.1,2643.5,2.64798]
[1723349882051,2.69960484,2644.1,2643.5,2.64798]
[1723349882624,2.6475,2644.0,2643.3,5.29629]
[1723349882846,2.6475,2644.0,2643.1,2.2735]
[1723349882847,2.64786,2643.7,2643.1,2.64833]
[1723349883145,2.70006484,2643.7,2643.1,2.64832]
[1723349883355,2.70006484,2643.7,2643.1,3.178008]
[1723349883749,2.70006484,2643.7,2643.1,5.826328]
[1723349883915,2.6479,2643.6,2643.1,2.64832]
[1723349884113,2.6479,2643.6,2642.9,5.29707]
[1723349884426,0.05220484,2643.5,2643.0,2.64847]
[1723349885041,2.70010484,2643.6,2643.0,2.64847]
[1723349885257,2.70010484,2643.6,2643.1,0.53726549]
[1723349885563,2.70010484,2643.6,2642.9,2.64852]
[1723349886825,2.38260484,2643.5,2643.0,2.64848]
[1723349887028,2.38260484,2643.5,2642.7,5.12462]
[1723349887253,5.03062484,2643.5,2642.9,2.64852]
[1723349887451,5.03064484,2643.5,2642.9,3.425838]
[1723349888073,2.64821,2643.3,2642.8,2.64868]
[1723349888365,2.38260484,2643.5,2642.9,2.64852]
[1723349888728,2.38260484,2643.5,2642.9,5.29705]
[1723349889034,2.38260484,2643.5,2642.9,5.29706]
[1723349889219,2.38260484,2643.5,2642.9,2.64852]
[1723349890769,2.88566032,2643.5,2642.9,2.64852]
[1723349891127,5.53368032,2643.5,2642.9,2.64852]
[1723349893870,2.64838,2643.2,2642.6,2.64889]
[1723349894023,2.3304,2643.3,2642.3,2.64911]
[1723349894226,2.64917,2642.4,2641.7,2.4759]
[1723349894537,2.64937,2642.2,2641.5,2.64995]
[1723349894742,5.35095484,2642.2,2641.6,0.512585]
[1723349894965,2.64953,2642.0,2641.3,2.65011]
[1723349895126,2.3304,2641.8,2641.3,2.65011]
[1723349895326,2.3304,2641.8,2641.4,2.6501]
[1723349895528,3.475,2642.7,2641.4,2.6501]
[1723349895529,2.4855,2642.6,2641.7,2.64975]
[1723349895736,2.64844,2643.1,2642.7,2.6488]
[1723349895737,2.4855,2643.0,2642.7,2.6488]
[1723349896034,2.4855,2643.0,2642.3,2.64913]
[1723349896239,0.05220484,2642.9,2642.3,2.914043]
[1723349896431,2.53770484,2643.0,2642.3,2.914043]
[1723349896630,2.53770484,2643.0,2642.5,2.649]
[1723349896831,2.4855,2643.0,2642.5,2.649]
[1723349897141,2.4855,2643.0,2642.6,2.6489]
[1723349897368,2.4855,2643.3,2642.8,2.64869]
[1723349897566,2.4855,2643.3,2642.7,2.64878]
[1723349897895,5.13379,2643.3,2642.7,2.64878]
[1723349898190,2.4855,2643.3,2642.8,0.07567341]
[1723349898394,2.4855,2643.3,2642.8,0.34811875]
[1723349898617,2.4855,2643.3,2642.9,2.6486]
[1723349898886,2.4855,2643.3,2642.8,0.34811875]
[1723349899093,5.13373,2643.3,2642.8,0.34811875]
[1723349899298,2.4855,2643.1,2642.0,2.64943]
[1723349899591,2.4855,2642.5,2641.8,2.64963]
[1723349899753,2.70137484,2642.4,2641.8,2.64963]
[1723349899955,2.70137484,2642.4,2641.9,0.264963]
[1723349900467,2.70137484,2642.4,2641.8,2.64969]
[1723349900692,2.64917,2642.4,2641.8,2.64969]
[1723349901056,2.64921,2642.3,2641.6,2.64989]
[1723349901293,2.70153484,2642.2,2641.4,3.180061]
[1723349901494,5.04316,2642.1,2641.4,3.180061]
[1723349901694,2.3937,2642.1,2641.5,2.9679661]
[1723349901931,2.3937,2642.1,2641.6,2.64989]
[1723349902431,2.64897,2642.6,2641.9,5.29907]
[1723349902620,0.05220484,2642.5,2641.7,5.05197]